{"text_format":"1","workbook":"xlsx","n_sheets":5,"sheets":["СВОД ОО","КСШ","ПСШ","Sheet2","Sheet3"],"not_rendered":{"charts":0,"images":0,"macros":1,"external_links":1,"defined_names":6,"comments":0,"pivot_tables":0},"unopened":[],"bounds":{"document_bytes":16777216,"sheet_cells":100000,"rows_first":2000,"rows_last":500,"rows_between":2000,"halvings":0,"cell_chars":16384,"cell_head_chars":4096},"cells_cut":0,"cells_raw":0,"read":"whole","date_system":"1900"}

{"sheet":"СВОД ОО","index":0,"n_rows":241,"n_cols":4,"rows_kept":241,"cut":false,"hidden":false,"merged":[[160,2,160,3],[120,2,120,3],[107,2,107,3],[142,2,142,3],[127,0,127,3],[111,2,111,3],[221,0,221,3],[231,2,231,3],[183,0,183,3],[193,2,193,3],[197,2,197,3],[203,2,203,3],[210,2,210,3],[218,2,218,3],[49,0,49,3],[26,2,26,3],[23,2,23,3],[61,2,61,3],[79,2,79,3],[83,2,83,3],[96,2,96,3],[57,2,57,3],[86,2,86,3],[92,0,92,3],[93,2,93,3],[1,0,1,3],[5,2,5,3],[6,2,6,3],[5,0,5,1],[6,0,6,1],[2,0,2,3],[7,0,7,1],[236,2,236,3],[32,2,32,3],[38,2,38,3],[41,2,41,3],[44,2,44,3],[139,2,139,3],[156,0,156,3],[101,2,101,3],[123,2,123,3],[7,2,7,3],[8,2,8,3],[8,0,8,1],[117,2,117,3],[11,0,11,3],[29,2,29,3]]}
[]
["Статистическая форма ННШ-M за 2015 год "]
["«Сведения о параметрах реализации национальной образовательной инициативы «Наша новая школа»"]
[]
[null,"Введите значения в поля желтого цвета."]
["Наименование субъекта РФ",null,"Томская область"]
["Наименование муниципального образования",null,"Отдел образования \"Город Кедровый\""]
["Количество зарегистрированных общеобразовательных организаций",null,2]
["Количество общеобразовательных организаций, предоставивших данные",null,2]
[]
["№","Наименование показателя","Ед. измерения"]
["1. ОБЩИЕ ПОКАЗАТЕЛИ"]
["1.1.","Численность обучающихся общеобразовательных организаций","человек",469]
["1.1.1.","Численность обучающихся общеобразовательных организаций сельской местности","человек ",120]
["1.1.2.","Численность обучающихся общеобразовательных организаций городской местности","человек ",349]
["1.2.","Численность учителей в общеобразовательных организациях","человек ",36]
["1.2.1.","Численность внешних совместителей","человек",1]
["1.2.2.","Численность внутренних совместителей","человек",23]
["1.2.3.","Численность учителей в городских общеобразовательных организациях","человек ",32]
["1.2.4.","Численность учителей в сельских общеобразовательных организациях","человек",15]
["1.3.","Численность выпускников 9-x классов","человек",44]
["1.3.1.","Численность выпускников 9-x классов, получивших аттестат с отличием","человек",2]
["1.3.2.","Численность выпускников 9-x классов, не получивших аттестат об основном общем образовании","человек",3]
["1.4.","Численность  выпускников 9-x классов, сдававших  ГИА по:"]
["1.4.1.","- русскому языку","человек",42]
["1.4.2.","- математике","человек",40]
["1.5.","Средний тестовый балл ГИА выпускников 9-x классов по"]
["1.5.1.","- русскому языку","баллов",53]
["1.5.2.","- математике","баллов",31]
["1.6.","Численность выпускников, 9-x классов, сдававших  ГИА и не преодолевших минимального порога по:"]
["1.6.1.","- русскому языку*","человек",1]
["1.6.2.","- математике**","человек",3]
["1.7.","Численность выпускников 9-х классов, поступивших в профессиональные образовательные организации или на профильное обучение по программам среднего общего образования:"]
["1.7.1.","- в профессиональные образовательные организации","человек",8]
["1.7.2.","- на профильное обучение по программам среднего общего образования","человек ",1]
["1.8.","Численность выпускников 11-х классов ","человек ",35]
["1.8.1.","Численность выпускников 11-х классов, получивших аттестат о среднем общем образовании ","человек ",35]
["1.8.2.","Численность выпускников 11-х классов, получивших аттестат о среднем общем образовании и награжденных золотой или серебряной медалью","человек ",1]
["1.9.","Численность выпускников, сдававших  ЕГЭ по: "]
["1.9.1.","- русскому языку","человек",35]
["1.9.2.","- математике","человек",35]
["1.10.","Средний тестовый балл ЕГЭ выпускников по"]
["1.10.1.","- русскому языку","баллов",112]
["1.10.2.","- математике","баллов",42]
["1.11.","Численность выпускников, сдававших ЕГЭ и не преодолевших минимального порога"]
["1.11.1.","- русскому языку","человек",0]
["1.11.2.","- математике","человек",0]
["1.12.","Численность выпускников 11-х классов, обучавшихся в классах с углубленным изучением отдельных предметов ","человек",0]
["1.13.","Численность выпускников 11-х классов, обучавшихся в профильных классах","человек",0]
["2. ПЕРЕХОД НА НОВЫЕ ОБРАЗОВАТЕЛЬНЫЕ СТАНДАРТЫ"]
["2.1.","Число общеобразовательных организаций, реализующих ФГОС","единиц ",2]
["2.1.1.","Общая численность учащихся начальных классов в общеобразовательных организациях, реализующих ФГОС","человек",{"$f":"КСШ!D48+ПСШ!D48","v":194}]
["2.1.2.","Численность  учащихся начальных классов, обучающихся по ФГОС","человек",{"$f":"КСШ!D49+ПСШ!D49","v":192}]
["2.1.3.","Общая численность учащихся основной школы, реализующей ФГОС","человек",{"$f":"КСШ!D50+ПСШ!D50","v":210}]
["2.1.4.","Численность  учащихся основной школы, обучающихся по ФГОС","человек",{"$f":"КСШ!D51+ПСШ!D51","v":37}]
["2.1.5.","Общая численность учащихся старшей школы, реализующей ФГОС","человек",{"$f":"КСШ!D52+ПСШ!D52","v":65}]
["2.1.6.","Численность  учащихся старшей школы, обучающихся по ФГОС ","человек",{"$f":"КСШ!D53+ПСШ!D53","v":0}]
[" 2.2.","Среднее количество часов в неделю внеурочной деятельности в классах начальной школы, обучающихся по ФГОС,  за счет: "]
["2.2.1.","бюджетного финансирования","часов",{"$f":"КСШ!D55+ПСШ!D55","v":14}]
["2.2.2.","внебюджетного финансирования","часов",{"$f":"КСШ!D56+ПСШ!D56","v":0}]
["2.2.3.","сочетания бюджетного и внебюджетного финансирования","часов",14]
[" 2.3.","Среднее количество часов в неделю внеурочной деятельности в классах основной школы,  обучающихся по ФГОС в пилотном режиме,  за счет: "]
["2.3.1.","бюджетного финансирования","часов",{"$f":"КСШ!D59+ПСШ!D59","v":15}]
["2.3.2.","внебюджетного финансирования","часов",{"$f":"КСШ!D60+ПСШ!D60","v":0}]
["2.3.3.","сочетания бюджетного и внебюджетного финансирования","часов ",15]
["2.4.","Среднее количество часов в неделю внеурочной деятельности в классах начальной школы, обучающихся по ФГОС,  в том числе, отведенных на направления:","часов ",{"$f":"КСШ!D62+ПСШ!D62","v":14}]
["2.4.1.","спортивно- оздоровительное ","часов",{"$f":"КСШ!D63+ПСШ!D63","v":3}]
["2.4.2.","духовно-нравственное","часов",{"$f":"КСШ!D64+ПСШ!D64","v":1}]
["2.4.3.","социальное","часов",{"$f":"КСШ!D65+ПСШ!D65","v":1}]
["2.4.4.","общеинтеллектуальное","часов",{"$f":"КСШ!D66+ПСШ!D66","v":3}]
["2.4.5.","общекультурное","часов",{"$f":"КСШ!D67+ПСШ!D67","v":7}]
["2.4.6.","другие","часов",{"$f":"КСШ!D68+ПСШ!D68","v":0}]
["2.5.","Среднее количество часов в неделю внеурочной деятельности в классах основной школы, обучающихся по ФГОС в пилотном режиме, в том числе, отведенных на направления:","часов ",{"$f":"КСШ!D69+ПСШ!D69","v":15}]
["2.5.1.","спортивно- оздоровительное ","часов",{"$f":"КСШ!D70+ПСШ!D70","v":4}]
["2.5.2.","духовно-нравственное","часов",{"$f":"КСШ!D71+ПСШ!D71","v":2}]
["2.5.3.","социальное","часов",{"$f":"КСШ!D72+ПСШ!D72","v":1}]
["2.5.4.","общеинтеллектуальное","часов",{"$f":"КСШ!D73+ПСШ!D73","v":3}]
["2.5.5.","общекультурное","часов",{"$f":"КСШ!D74+ПСШ!D74","v":5}]
["2.5.6.","другие","часов",{"$f":"КСШ!D75+ПСШ!D75","v":0}]
["2.6.","Число  общеобразовательных организаций, в которых используются современные оценочные процедуры для оценки достижений обучающихся по ФГОС в начальных классах: "," "]
["2.6.1.","- механизмы накопительной системы оценивания (портфолио и др.) ","единиц ",1]
["2.6.2.","- проектные, творческие исследовательские работы и др.","единиц ",1]
["2.6.3.","-  иные виды оценивания, отличные от пятибалльной системы","единиц ",0]
["2.7.","Численность обучающихся по ФГОС, которым обеспечена возможность пользоваться в соответствии с ФГОС:"]
["2.7.1.","- учебным оборудованием для практических работ","человек",{"$f":"КСШ!D81+ПСШ!D81","v":228}]
["2.7.2.","- интерактивными учебными пособиями (доска, мультимедийные установки и др.)","человек",{"$f":"КСШ!D82+ПСШ!D82","v":228}]
["2.8.","Число общеобразовательных организаций, в которых для обучающихся по ФГОС в начальных классах, организованы оборудованные постоянно действующие площадки: "]
["2.8.1.","- площадки для наблюдений, исследований","единиц",{"$f":"КСШ!D84+ПСШ!D84","v":0}]
["2.8.2.","- площадки для моделирования, конструирования","единиц",{"$f":"КСШ!D85+ПСШ!D85","v":0}]
["2.8.3.","- театральная площадка ","единиц",{"$f":"КСШ!D86+ПСШ!D86","v":0}]
["2.10.","Общая численность руководителей и педагогических работников","человек ",42]
["2.10.1.","Численность руководителей и педагогических работников общеобразовательных организаций, прошедших повышение квалификации и/или профессиональную переподготовку для работы в соответствии с ФГОС","человек ",22]
["3. РАЗВИТИЕ СИСТЕМЫ ПОДДЕРЖКИ ТАЛАНТЛИВЫХ ДЕТЕЙ"]
["3.1.","Школьный этап Всероссийской олимпиады школьников"]
["3.1.1.","Общая численность обучающихся 5-11 классов","человек",{"$f":"КСШ!D92+ПСШ!D92","v":275}]
["3.1.2.","Численность обучающихся 5-11 классов, принявших участие  в школьном этапе Всероссийской олимпиады школьников","человек ",{"$f":"КСШ!D93+ПСШ!D93","v":195}]
["3.2.","Муниципальный этап Всероссийской олимпиады школьников"]
["3.2.1.","Общая численность обучающихся 7-11 классов","человек",{"$f":"КСШ!D95+ПСШ!D95","v":197}]
["3.2.2.","Численность обучающихся 7-11 классов, принявших участие в муниципальном этапе Всероссийской олимпиады школьников ","человек",{"$f":"КСШ!D96+ПСШ!D96","v":85}]
["3.2.3.","Численность обучающихся 7-11 классов, ставших победителями и призерами муниципального этапа Всероссийской олимпиады школьников","человек",{"$f":"КСШ!D97+ПСШ!D97","v":33}]
["3.2.4.","Общее количество призовых мест, занятых обучающимися 7-11 классов на муниципальном этапе Всероссийской олимпиады школьников","мест ",{"$f":"КСШ!D98+ПСШ!D98","v":38}]
["3.3.","Региональный этап Всероссийской олимпиады школьников"]
["3.3.1.","Общая численность  обучающихся 9-11 классов","человек",109]
["3.3.2.","Численность обучающихся 9-11 классов, принявших участие в региональном этапе Всероссийской олимпиады школьников","человек",0]
[]
["3.3.4.","Численность  обучающихся 9-11 классов, ставших победителями и призерами регионального этапа Всероссийской олимпиады школьников","человек",0]
["3.3.5.","Количество призовых мест в предметных олимпиадах, занятых обучающимися 9-11 классов на региональном этапе Всероссийской олимпиады школьников","мест ",0]
["3.4.","Заключительный этап Всероссийской олимпиады школьников"]
["3.4.1.","Численность обучающихся 9-11 классов, принявших участие в заключительном этапе Всероссийской олимпиады школьников","человек",0]
["3.4.2.","Численность  обучающихся 9-11 классов, ставших победителями и призерами заключительного этапа Всероссийской олимпиады школьников","человек",0]
["3.4.3.","Количество призовых мест, занятых обучающимися 9-11 классов на заключительном этапе Всероссийской олимпиады школьников","мест ",0]
["3.5.","Очные и дистанционные олимпиады, проводимые сторонними организациями"]
["3.5.1.","Численность обучающихся, приявших участие в очных олимпиадах для школьников (кроме Всероссийской олимпиады школьников), проводимых сторонними организациями и организациими","человек",197]
["3.5.2.","Количество призовых мест, занятых  обучающимися в очных олимпиадах для школьников (кроме Всероссийской олимпиады школьников), проводимых сторонними организациями и организациими ","мест ",109]
["3.5.3.","Численность  обучающихся, ставших победителями и призерами в очных олимпиадах для школьников (кроме Всероссийской олимпиады школьников), проводимых сторонними организациями и организациими","человек",52]
["3.5.4.","Численность обучающихся, принявших участие в дистанционных олимпиадах, проводимых сторонними организациями","человек",35]
["3.5.5.","Количество призовых мест, занятых учащимися в дистанционных олимпиадах, проводимых сторонними организациями и организациими","мест ",11]
["3.6.","Численность обучающихся, которым созданы условия для занятий творчеством в специально оборудованных:"]
["3.6.1.","студиях","человек",0]
["3.6.2.","актовых залах","человек",467]
["3.7.","Объем финансовых средств, целенаправленно выделенных на поддержку одаренных детей и талантливой молодежи"," "]
["3.7.1.","из федерального бюджета","тыс. рублей",0]
["3.7.2.","из регионального бюджета","тыс. рублей",0]
["3.8.","Численность обучающихся в общеобразовательных организациях, которым оказана поддержка в рамках программ поддержки одаренных детей и талантливой молодежи "]
["3.8.1.","на федеральном уровне","человек",0]
["3.8.2."," на региональном  уровне","человек",0]
[]
["4. СОВЕРШЕНСТВОВАНИЕ УЧИТЕЛЬСКОГО КОРПУСА"]
["4.1.","Общая численность педагогических работников","человек",38]
["4.2.","Численность педагогических работников, прошедших аттестацию на подтверждение занимаемой должности ","человек",3]
["4.3.","Численность педагогических работников, прошедших аттестацию на присвоение первой квалификационной категории","человек",8]
["4.4.","Численность педагогических работников, прошедших аттестацию на присвоение высшей квалификационной категории","человек",0]
["4.5.","Среднемесячная начисленная заработная плата работников общеобразовательных организаций за отчетный год","рублей",58877]
["4.5.1.","- учителей","рублей",84630]
["4.5.2.","- управленческого персонала (директор и заместители директора)","рублей",97175]
["4.5.3.","- прочих педагогических работников","рублей",85640]
["4.6.","Численность педагогических работников (учителей и прочих педагогических работников), принятых на работу в текущем году ","человек",2]
["4.7.","Численность педагогических работников (учителей и прочих педагогических работников), принятых на работу в текущем году и поддержанных на уровне субъекта РФ разовыми выплатами","человек",0]
["4.8.","Численность педагогических работников (учителей и прочих педагогических работников), принятых на работу в текущем году и включенных в программу по поддержке молодых специалистов выплатами на период от 2-х и более лет","человек",1]
["4.9.","Численность педагогических работников (учителей и прочих педагогических работников), принятых на работу в текущем году в общеобразовательные организации, расположенные в: "]
["4.9.1.","сельской местности","человек",1]
["4.9.2.","городской местности","человек",1]
["4.10.","Численность педагогических работников (учителей и прочих педагогических работников), принятых на работу в текущем году и обеспеченных жильем (общежитие, отдельная квартира):"]
["4.10.1.","отдельной благоустроенной квартирой","человек",{"$f":"КСШ!D141+ПСШ!D141","v":1}]
["4.10.2.","общежитием","человек",{"$f":"КСШ!D142+ПСШ!D142","v":0}]
["4.11.","Общая численность персонала общеобразовательных организаций","человек",{"$f":"КСШ!D143+ПСШ!D143","v":98}]
["4.12.","Общая численность учителей в составе персонала общеобразовательных организаций","человек",{"$f":"КСШ!D144+ПСШ!D144","v":36}]
["4.13.","Численность управленческих кадров в составе персонала общеобразовательных организаций ","человек",{"$f":"КСШ!D145+ПСШ!D145","v":5}]
["4.14.","Численность педагогических кадров, имеющих высшее профессиональное образование в составе персонала общеобразовательных организаций","человек",{"$f":"КСШ!D146+ПСШ!D146","v":35}]
["4.15.","Численность учителей в возрасте до 30 лет  в составе персонала общеобразовательных организаций","человек",{"$f":"КСШ!D147+ПСШ!D147","v":5}]
["4.16.","Численность учителей, которые являются наставниками для молодых специалистов в составе персонала общеобразовательных организаций","человек",{"$f":"КСШ!D148+ПСШ!D148","v":1}]
["4.17.","Численность учителей, которые являются наставниками для молодых специалистов и которым в отчетном году была оказана моральная поддержка (присвоение званий, награждение и т.д.)","человек",{"$f":"КСШ!D149+ПСШ!D149","v":1}]
["4.18."," Численность учителей, которые являются наставниками для молодых специалистов и которым в отчетном году была оказана материальная поддержка (доплаты из стимулирующей части фонда заработной платы, выплаты по отдельно принятым нормативным правовым актам и т.д.)","человек",{"$f":"КСШ!D150+ПСШ!D150","v":1}]
["4.19.","Численность учителей, работающих в созданных в субъекте Российской Федерации профессиональных сообществах (ассоциации учителей-предметников иные общественные профессиональные объединения)","человек",{"$f":"КСШ!D151+ПСШ!D151","v":0}]
["4.20.","Численность педагогических работников,  прошедших в истекшем учебном году курсы повышения квалификации, в том числе:","человек",{"$f":"КСШ!D152+ПСШ!D152","v":9}]
["4.21.","по персонифицированной модели повышения квалификации","человек",{"$f":"КСШ!D153+ПСШ!D153","v":0}]
["5.  ИЗМЕНЕНИЕ ШКОЛЬНОЙ ИНФРАСТРУКТУРЫ"]
["5.1.","Общее количество негосударственных общеобразовательных организаций, которым обеспечен доступ к бюджетному финансированию по нормативу","единиц ",2]
[]
["5.3.","Средняя наполняемость старшей ступени в государственных (муниципальных) общеобразовательных организациях ","человек ",20]
["5.4.","Численность обучающихся, которые имеют возможность пользоваться современной библиотекой:"]
["5.4.1.","читальный зал библиотеки/медиатеки с числом рабочих мест не менее 25","человек",{"$f":"КСШ!D158+ПСШ!D158","v":25}]
["5.4.2.","с обеспечением возможности работы на стационарных компьютерах или использования переносных компьютеров ","человек",{"$f":"КСШ!D159+ПСШ!D159","v":0}]
["5.4.3.","с медиатекой","человек",{"$f":"КСШ!D160+ПСШ!D160","v":0}]
["5.4.4.","оснащенную средствами сканирования и распознавания текстов ","человек",{"$f":"КСШ!D161+ПСШ!D161","v":0}]
["5.4.5.","с выходом в Интернет с компьютеров, расположенных в помещении библиотеки ","человек ",{"$f":"КСШ!D162+ПСШ!D162","v":0}]
["5.4.6.","с контролируемой распечаткой бумажных материалов ","человек",{"$f":"КСШ!D163+ПСШ!D163","v":1}]
["5.4.7.","с контролируемым копированием бумажных материалов","человек",{"$f":"КСШ!D164+ПСШ!D164","v":1}]
["5.5.","Численность обучающихся, которым обеспечена возможность пользоваться широкополосным Интернетом (не менее 2 Мб/с), от общей численности обучающихся ","человек",{"$f":"КСШ!D165+ПСШ!D165","v":467}]
["5.6.","Количество школ, имеющих широкополосный Интернет (не менее 2 Мб/с)","единиц ",{"$f":"КСШ!D166+ПСШ!D166","v":2}]
["5.7.","Численность детей-инвалидов, которым  показано обучение на дому","человек",{"$f":"КСШ!D167+ПСШ!D167","v":3}]
["5.8.","Численность детей-инвалидов, получающих образование на дому с использованием дистанционных образовательных технологий","человек",{"$f":"КСШ!D168+ПСШ!D168","v":0}]
["5.9.","Численность обучающихся 10-11 классов общеобразовательных организаций, обучающихся в отдельных зданиях общеобразовательных организаций ","человек",{"$f":"КСШ!D169+ПСШ!D169","v":0}]
["5.10.","Количество построенных новых школ в отчетном году","единиц",{"$f":"КСШ!D170+ПСШ!D170","v":0}]
["5.11.","Численность обучающихся в новых школах ","человек",{"$f":"КСШ!D171+ПСШ!D171","v":0}]
["5.12.","Количество построенных новых спортивных залов при школах в отчетном году ","единиц",{"$f":"КСШ!D172+ПСШ!D172","v":0}]
["5.13.","Количество школ, в которых в отчетном году проведен капитальный ремонт","единиц",{"$f":"КСШ!D173+ПСШ!D173","v":0}]
["5.14.","Общая численность сельских школьников нуждающихся в подвозе","человек",{"$f":"КСШ!D174+ПСШ!D174","v":49}]
["5.15.","Численность сельских школьников, которым  обеспечен ежедневный подвоз в базовые школы, в общей численности сельских школьников нуждающихся в подвозе","человек",{"$f":"КСШ!D175+ПСШ!D175","v":49}]
["5.16.","Общая численности городских школьников нуждающихся в подвозе","человек",{"$f":"КСШ!D176+ПСШ!D176","v":2}]
["5.17.","Численность  городских школьников, которым обеспечен ежедневный подвоз в базовые школы","человек",{"$f":"КСШ!D177+ПСШ!D177","v":2}]
["5.18.","Количество общеобразовательных организаций, имеющих учебно-производственные мастерские","единиц",{"$f":"КСШ!D178+ПСШ!D178","v":2}]
["5.19.","Численность обучающихся в общеобразовательных организациях, имеющих учебно-производственные мастерские","человек",{"$f":"КСШ!D179+ПСШ!D179","v":467}]
["6. СОХРАНЕНИЕ И УКРЕПЛЕНИЕ ЗДОРОВЬЯ ШКОЛЬНИКОВ"]
["6.1.","Общее количество зданий общеобразовательных организаций","единиц ",2]
["6.2.","Количество зданий общеобразовательных организаций, в которых обеспечена безбарьерная среда для детей с ограниченными возможностями здоровья","единиц ",2]
["6.3.","Количество общеобразовательных организаций, в которых обеспечена возможность пользоваться столовыми, в которых выполнены все перечисленные требования:","единиц ",2]
["6.3.1.","собственная (на условиях договора пользования) столовая или зал для приема пищи с площадью в соответствии с СанПиН","единиц ",2]
["6.3.2.","технологическое оборудование","единиц ",2]
["6.3.3.","наличие сотрудников, квалифицированных для работы на современном технологическом оборудовании","единиц ",2]
["6.3.4.","помещение столовой не требует ремонта","единиц ",2]
["6.3.5.","современно оформленный зал для приема пищи ","единиц ",2]
["6.4.","Количество общеобразовательных организаций, в которых осуществляется реализация образовательных программ по формированию культуры здорового питания","единиц  ",1]
["6.5.","Численность обучающихся, которые получают качественное горячее питание"]
["6.5.1.","только горячие завтраки","человек",0]
["6.5.2.","только горячие обеды","человек",217]
["6.5.3.","горячие завтраки и обеды","человек",190]
[]
[]
[]
[]
[]
[]
["6.6.","Численность обучающихся, которым обеспечена возможность пользоваться универсальными спортивными залами со следующими характеристиками: "]
["6.6.1."," собственный спортивный зал или спортивный зал на условиях договора пользования ","человек",467]
["6.6.2.","площадь зала для занятий не менее 9х18м","человек",457]
["6.6.3.","высота зала не менее 6 м","человек",467]
["6.6.4.","оборудованные раздевалки","человек",467]
["6.6.5.","действующие душевые комнаты","человек",120]
["6.6.6.","действующие туалеты","человек",467]
["6.7.","Численность обучающихся, которым обеспечена возможность пользоваться оборудованными спортивными площадками для реализации программы «Легкая атлетика» (с учетом климатических условий) со следующими характеристиками:"]
["6.7.1.","собственная оборудованная территория или на условиях договора пользования","человек",0]
["6.7.2.","размеченные дорожки для бега","человек",0]
["6.7.3.","дорожки для бега с твердым покрытием","человек",0]
["6.7.4.","оборудованный сектор для метания","человек",0]
["6.7.5.","оборудованный сектор для прыжков в длину","человек",0]
["6.8.","Количество общеобразовательных организаций,  в которых предусмотрено более 3-х часов физической культуры в неделю","единиц",1]
["6.9.","Численность обучающихся, в образовательном плане которых предусмотрено более 3 часов занятий физической культуры в неделю","человек",173]
[" 6.10.","Численность обучающихся в общеобразовательных организациях, в которых обеспечено медицинское обслуживание, включая наличие лицензионных медицинских кабинетов и не менее 1 квалифицированного медицинского работника, в том числе:"]
["6.10.1.","- собственный лицензионный медицинский кабинет или на условиях договора пользования","человек",469]
["6.10.2.","- имеется  не менее 1 квалифицированного медицинского работника","человек",469]
["7. РАЗВИТИЕ САМОСТОЯТЕЛЬНОСТИ ШКОЛ"]
["7.1.","Количество общеобразовательных организаций, перешедших на нормативное подушевое финансирование в соответствии с модельной методикой Минобрнауки России","единиц ",2]
["7.2.","Количество общеобразовательных организаций, перешедших на новую систему оплаты труда в соответствии с модельной методикой Минобрнауки России","единиц",2]
["7.3.","Количество автономных общеобразовательных организаций ","единиц",1]
["7.4.","Количество бюджетных  общеобразовательных организаций ","единиц",1]
["7.5.","Количество  казенных  общеобразовательных организаций ","единиц",0]
["7.6.","Количество общеобразовательных организаций, которые представили общественности публичный доклад и/или отчет о самообследовании, обеспечивающий открытость и прозрачность деятельности организации","единиц",2]
["7.7.","Количество общеобразовательных организаций, которые представили общественности публичный доклад и/или отчет о самообследовании, при наличии технической возможности размещенный в сети Интернет","единиц",2]
["7.8.","Количество общеобразовательных организаций, в которых взаимодействие с родителями осуществляется посредством постоянно-действующих реальных и виртуальных переговорных площадок (форум на сайте образовательного организации, общественная родительская организация, лекторий, семинар и др.)","единиц",1]
["7.9.","Количество общеобразовательных организаций, в которых созданы органы государственно-общественного управления","единиц",2]
["7.10.","Количество общеобразовательных организаций, в которых органы государственно-общественного управления принимают участие в разработке и утверждении:"]
["7.10.1.","основных образовательных программ","единиц",1]
["7.10.2.","программ развития образовательного организации","единиц",1]
["7.10.3.","иных нормативно-правовых актов школы и программ","единиц",2]
["7.10.4.","планов финансово-хозяйственной деятельности","единиц",2]
["7.11.","Количество общеобразовательных организаций, перешедших на электронный документооборот (электронные системы управления):"]
["7.11.1.","электронный дневник","единиц",1]
["7.11.2.","электронный журнал","единиц",2]
["7.11.3.","электронная учительская","единиц",0]
["7.12.","Количество общеобразовательных организаций, предоставляющих некоторые образовательные услуги в электронном виде (запись в школу, ответы на обращения и др.)","единиц",0]

{"sheet":"КСШ","index":1,"n_rows":235,"n_cols":4,"rows_kept":235,"cut":false,"hidden":false,"merged":[[230,2,230,3],[153,0,153,3],[156,2,156,3],[179,0,179,3],[182,2,182,3],[189,2,189,3],[193,2,193,3],[199,2,199,3],[206,2,206,3],[214,2,214,3],[217,0,217,3],[225,2,225,3],[139,2,139,3],[89,0,89,3],[90,2,90,3],[93,2,93,3],[98,2,98,3],[104,2,104,3],[108,2,108,3],[114,2,114,3],[117,2,117,3],[120,2,120,3],[124,0,124,3],[136,2,136,3],[82,2,82,3],[22,2,22,3],[25,2,25,3],[28,2,28,3],[34,2,34,3],[37,2,37,3],[40,2,40,3],[45,0,45,3],[53,2,53,3],[57,2,57,3],[75,2,75,3],[79,2,79,3],[19,2,19,3],[1,0,1,3],[2,0,2,3],[5,0,5,1],[5,2,5,3],[6,0,6,1],[6,2,6,3],[7,0,7,1],[7,2,7,3],[8,0,8,1],[8,2,8,3],[11,0,11,3]]}
[]
["Статистическая форма ННШ-ОУ за 2015 год "]
["«Сведения о параметрах реализации национальной образовательной инициативы «Наша новая школа»"]
[]
[null,"Введите значения в поля желтого цвета."]
["Наименование субъекта РФ",null,"Томская область"]
["Наименование муниципального образования",null,"город Кедровый"]
["Наименование общеобразовательной организации",null,"МБОУ СОШ №1"]
["Местонахождение общеобразовательной организации (город/село)",null,"город"]
[]
["№","Наименование показателя","Ед. измерения","Значение показателя"]
["1. ОБЩИЕ ПОКАЗАТЕЛИ"]
["1.1.","Численность обучающихся на конец отчетного периода","человек",349]
["1.2.","Численность учителей на  конец отчетного периода","человек ",26]
["1.2.1.","Численность внешних совместителей на  конец отчетного периода","человек",0]
["1.2.2.","Численность внутренних совместителей на  конец отчетного периода","человек",21]
["1.3.","Численность выпускников 9-x классов","человек",32]
["1.3.1.","Численность выпускников 9-x классов, получивших аттестат с отличием","человек",0]
["1.3.2.","Численность выпускников 9-x классов, не получивших аттестат об основном общем образовании","человек",2]
["1.4.","Численность  выпускников 9-x классов, сдававших  ГИА по:"]
["1.4.1."," русскому языку","человек",32]
["1.4.2."," математике","человек",30]
["1.5.","Средний тестовый балл ГИА выпускников 9-x классов по"]
["1.5.1."," русскому языку","баллов",27]
["1.5.2."," математике","баллов",11.8]
["1.6.","Численность выпускников 9-x классов, сдававших  ГИА и не преодолевших минимального порога по:"]
["1.6.1."," русскому языку","человек",1]
["1.6.2."," математике","человек",2]
["1.7.","Численность выпускников 9-х классов, поступивших в профессиональные образовательные организации или на профильное обучение по программам среднего общего образования:"]
["1.7.1."," в профессиональные образовательные организации","человек",6]
["1.7.2."," на профильное обучение по программам среднего общего образования","человек ",1]
["1.8.","Численность выпускников 11-х классов ","человек ",23]
["1.8.1.","Численность выпускников 11-х классов, получивших аттестат о среднем общем образовании ","человек ",23]
["1.8.2.","Численность выпускников 11-х классов, получивших аттестат о среднем общем образовании и награжденных золотой или серебряной медалью","человек ",0]
["1.9.","Численность выпускников, сдававших  ЕГЭ по: "]
["1.9.1."," русскому языку","человек",23]
["1.9.2."," математике","человек",23]
["1.10.","Средний тестовый балл ЕГЭ выпускников по"]
["1.10.1."," русскому языку","баллов",53.65]
["1.10.2."," математике","баллов",38]
["1.11.","Численность выпускников, сдававших ЕГЭ и не преодолевших минимального порога"]
["1.11.1."," русскому языку","человек",0]
["1.11.2."," математике","человек",0]
["1.12.","Численность выпускников 11-х классов, обучавшихся в классах с углубленным изучением отдельных предметов ","человек",0]
["1.13.","Численность выпускников 11-х классов, обучавшихся в профильных классах","человек",0]
["2. ПЕРЕХОД НА НОВЫЕ ОБРАЗОВАТЕЛЬНЫЕ СТАНДАРТЫ"]
["2.1.","Реализация ФГОС в учебном процессе","Да/Нет","да"]
["2.1.1.","Общая численность учащихся начальных классов","человек",147]
["2.1.2.","Численность  учащихся начальных классов, обучающихся по ФГОС","человек",145]
["2.1.3.","Общая численность учащихся основной школы","человек",156]
["2.1.4.","Численность  учащихся основной школы, обучающихся по ФГОС","человек",28]
["2.1.5.","Общая численность учащихся старшей школы","человек",46]
["2.1.6.","Численность  учащихся старшей школы, обучающихся по ФГОС ","человек",0]
[" 2.2.","Среднее количество часов в неделю внеурочной деятельности в классах начальной школы, обучающихся по ФГОС,  за счет: "]
["2.2.1.","бюджетного финансирования","часов",10]
["2.2.2.","внебюджетного финансирования","часов",0]
["2.2.3.","сочетания бюджетного и внебюджетного финансирования","часов",0]
[" 2.3.","Среднее количество часов в неделю внеурочной деятельности в классах основной школы,  обучающихся по ФГОС в пилотном режиме,  за счет: "]
["2.3.1.","бюджетного финансирования","часов",10]
["2.3.2.","внебюджетного финансирования","часов",0]
["2.3.3.","сочетания бюджетного и внебюджетного финансирования","часов ",0]
["2.4.","Среднее количество часов в неделю внеурочной деятельности в классах начальной школы, обучающихся по ФГОС  в том числе, отведенных на направления:","часов ",10]
["2.4.1.","спортивно-оздоровительное ","часов",3]
["2.4.2.","духовно-нравственное","часов",1]
["2.4.3.","социальное","часов",1]
["2.4.4.","общеинтеллектуальное","часов",2]
["2.4.5.","общекультурное","часов",3]
["2.4.6.","другие","часов",0]
["2.5.","Среднее количество часов в неделю внеурочной деятельности в классах основной школы, обучающихся по ФГОС в пилотном режиме, в том числе, отведенных на направления:","часов ",10]
["2.5.1.","спортивно-оздоровительное ","часов",3]
["2.5.2.","духовно-нравственное","часов",2]
["2.5.3.","социальное","часов",1]
["2.5.4.","общеинтеллектуальное","часов",3]
["2.5.5.","общекультурное","часов",1]
["2.5.6.","другие","часов",0]
["2.6.","Использование современных оценочных процедур для оценки достижений обучающихся по ФГОС в начальных классах: "," "]
["2.6.1."," механизмы накопительной системы оценивания (портфолио и др.) ","Да/Нет","нет"]
["2.6.2."," проектные, творческие исследовательские работы и др.","Да/Нет","нет"]
["2.6.3.","  иные виды оценивания, отличные от пятибалльной системы","Да/Нет","нет"]
["2.7.","Численность обучающихся по ФГОС, которым обеспечена возможность пользоваться в соответствии с ФГОС:"]
["2.7.1."," учебным оборудованием для практических работ","человек",173]
["2.7.2."," интерактивными учебными пособиями (доска, мультимедийные установки и др.)","человек",173]
["2.8.","Организация оборудованных постоянно действующих площадок: "]
["2.8.1."," площадки для наблюдений, исследований","единиц",0]
["2.8.2."," площадки для моделирования, конструирования","единиц",0]
["2.8.3."," театральная площадка ","единиц",0]
[]
["2.10.","Общая численность руководителей и педагогических работников","человек ",30]
["2.10.1.","Численность руководителей и педагогических работников общеобразовательной организации, прошедших повышение квалификации и/или профессиональную переподготовку для работы в соответствии с ФГОС","человек ",13]
["3. РАЗВИТИЕ СИСТЕМЫ ПОДДЕРЖКИ ТАЛАНТЛИВЫХ ДЕТЕЙ"]
["3.1.","Школьный этап Всероссийской олимпиады школьников"]
["3.1.1.","Общая численность обучающихся 5-11 классов","человек",202]
["3.1.2.","Численность обучающихся 5-11 классов, принявших участие  в школьном этапе Всероссийской олимпиады школьников","человек ",134]
["3.2.","Муниципальный этап Всероссийской олимпиады школьников"]
["3.2.1.","Общая численность обучающихся 7-11 классов","человек",137]
["3.2.2.","Численность обучающихся 7-11 классов, принявших участие в муниципальном этапе Всероссийской олимпиады школьников ","человек",60]
["3.2.3.","Численность обучающихся 7-11 классов, ставших победителями и призерами муниципального этапа Всероссийской олимпиады школьников","человек",20]
["3.2.4.","Общее количество призовых мест, занятых обучающимися 7-11 классов на муниципальном этапе Всероссийской олимпиады школьников","мест ",24]
["3.3.","Региональный этап Всероссийской олимпиады школьников"]
["3.3.1.","Общая численность  обучающихся 9-11 классов","человек",74]
["3.3.2.","Численность обучающихся 9-11 классов, принявших участие в региональном этапе Всероссийской олимпиады школьников","человек",0]
["3.3.3.","Число обучающихся 9-11 классов, принявших участие в региональном этапе Всероссийской олимпиады школьников на каждые 10000 обучающихся","человек ",0]
["3.3.4.","Численность  обучающихся 9-11 классов, ставших победителями и призерами регионального этапа Всероссийской олимпиады школьников","человек",0]
["3.3.5.","Количество призовых мест в предметных олимпиадах, занятых обучающимися 9-11 классов на региональном этапе Всероссийской олимпиады школьников","мест ",0]
["3.4.","Заключительный этап Всероссийской олимпиады школьников"]
["3.4.1.","Численность обучающихся 9-11 классов, принявших участие в заключительном этапе Всероссийской олимпиады школьников","человек",0]
["3.4.2.","Численность  обучающихся 9-11 классов, ставших победителями и призерами заключительного этапа Всероссийской олимпиады школьников","человек",0]
["3.4.3.","Количество призовых мест, занятых обучающимися 9-11 классов на заключительном этапе Всероссийской олимпиады школьников","мест ",0]
["3.5.","Очные и дистанционные олимпиады, проводимые сторонними организациями"]
["3.5.1.","Численность обучающихся, приявших участие в очных олимпиадах для школьников (кроме Всероссийской олимпиады школьников), проводимых сторонними организациями","человек",197]
["3.5.2.","Количество призовых мест, занятых  обучающимися в очных олимпиадах для школьников (кроме Всероссийской олимпиады школьников), проводимых сторонними организациями ","мест ",109]
["3.5.3.","Численность  обучающихся, ставших победителями и призерами в очных олимпиадах для школьников (кроме Всероссийской олимпиады школьников), проводимых сторонними организациями","человек",52]
["3.5.4.","Численность обучающихся, принявших участие в дистанционных олимпиадах, проводимых сторонними организациями","человек",35]
["3.5.5.","Количество призовых мест, занятых учащимися в дистанционных олимпиадах, проводимых сторонними организациями","мест ",11]
["3.6.","Численность обучающихся, которым созданы условия для занятий творчеством в специально оборудованных:"]
["3.6.1.","студиях","человек",0]
["3.6.2.","актовых залах","человек",347]
["3.7.","Объем финансовых средств, целенаправленно выделенных на поддержку одаренных детей и талантливой молодежи"," "]
["3.7.1.","из федерального бюджета","тыс. рублей",0]
["3.7.2.","из регионального бюджета","тыс. рублей",0]
["3.8.","Численность обучающихся в общеобразовательных организациях, которым оказана поддержка в рамках программ поддержки одаренных детей и талантливой молодежи "]
["3.8.1.","на федеральном уровне","человек",0]
["3.8.2."," на региональном  уровне","человек",0]
[]
["4. СОВЕРШЕНСТВОВАНИЕ УЧИТЕЛЬСКОГО КОРПУСА"]
["4.1.","Общая численность педагогических работников","человек",27]
["4.2.","Численность педагогических работников, прошедших аттестацию на подтверждение занимаемой должности ","человек",1]
["4.3.","Численность педагогических работников, прошедших аттестацию на присвоение первой квалификационной категории","человек",5]
["4.4.","Численность педагогических работников, прошедших аттестацию на присвоение высшей квалификационной категории","человек",0]
["4.5.","Среднемесячная начисленная заработная плата работников общеобразовательной организации за отчетный год","рублей",30589]
["4.5.1."," учителей","рублей",42907]
["4.5.2."," управленческого персонала (директор и заместители директора)","рублей",57132]
["4.5.3."," прочих педагогических работников","рублей",42580]
["4.6.","Численность педагогических работников (учителей и прочих педагогических работников), принятых на работу в текущем году ","человек",1]
["4.7.","Численность педагогических работников (учителей и прочих педагогических работников), принятых на работу в текущем году и поддержанных на уровне субъекта РФ разовыми выплатами","человек",0]
["4.8.","Численность педагогических работников (учителей и прочих педагогических работников), принятых на работу в текущем году и включенных в программу по поддержке молодых специалистов выплатами на период от 2-х и более лет","человек",0]
["4.9.","Численность педагогических работников (учителей и прочих педагогических работников), принятых на работу в текущем году в общеобразовательные организации, расположенные в: "]
["4.9.1.","сельской местности","человек"]
["4.9.2.","городской местности","человек",1]
["4.10.","Численность педагогических работников (учителей и прочих педагогических работников), принятых на работу в текущем году и обеспеченных жильем (общежитие, отдельная квартира):"]
["4.10.1.","отдельной благоустроенной квартирой","человек",0]
["4.10.2.","общежитием","человек",0]
["4.11.","Общая численность персонала общеобразовательной организации","человек",61]
["4.12.","Общая численность учителей в составе персонала общеобразовательной организации","человек",26]
["4.13.","Численность управленческих кадров в составе персонала общеобразовательной организации ","человек",3]
["4.14.","Численность педагогических кадров, имеющих высшее профессиональное образование в составе персонала общеобразовательной организации","человек",28]
["4.15.","Численность учителей в возрасте до 30 лет  в составе персонала общеобразовательной организации","человек",4]
["4.16.","Численность учителей, которые являются наставниками для молодых специалистов в составе персонала общеобразовательной организации","человек",1]
["4.17.","Численность учителей, которые являются наставниками для молодых специалистов и которым в отчетном году была оказана моральная поддержка (присвоение званий, награждение и т.д.)","человек",1]
["4.18."," Численность учителей, которые являются наставниками для молодых специалистов и которым в отчетном году была оказана материальная поддержка (доплаты из стимулирующей части фонда заработной платы, выплаты по отдельно принятым нормативным правовым актам и т.д.)","человек",1]
["4.19.","Численность учителей, работающих в созданных в субъекте Российской Федерации профессиональных сообществах (ассоциации учителей-предметников иные общественные профессиональные объединения)","человек",0]
["4.20.","Численность педагогических работников,  прошедших в истекшем учебном году курсы повышения квалификации, в том числе:","человек",4]
["4.21.","по персонифицированной модели повышения квалификации","человек",0]
["5.  ИЗМЕНЕНИЕ ШКОЛЬНОЙ ИНФРАСТРУКТУРЫ"]
["5.1.","Обеспечение доступа к бюджетному финансированию по нормативу","Да/Нет","Да"]
["5.3.","Средняя наполняемость старшей ступени в государственных (муниципальных) общеобразовательных организациях ","человек "]
["5.4.","Численность обучающихся, которые имеют возможность пользоваться современной библиотекой:"]
["5.4.1.","читальный зал библиотеки/медиатеки с числом рабочих мест не менее 25","человек",25]
["5.4.2.","с обеспечением возможности работы на стационарных компьютерах или использования переносных компьютеров ","человек",0]
["5.4.3.","с медиатекой","человек",0]
["5.4.4.","оснащенную средствами сканирования и распознавания текстов ","человек",0]
["5.4.5.","с выходом в Интернет с компьютеров, расположенных в помещении библиотеки ","человек ",0]
["5.4.6.","с контролируемой распечаткой бумажных материалов ","человек",1]
["5.4.7.","с контролируемым копированием бумажных материалов","человек",1]
["5.5.","Численность обучающихся, которым обеспечена возможность пользоваться широкополосным Интернетом (не менее 2 Мб/с), от общей численности обучающихся ","человек",347]
["5.6.","Количество школ, имеющих широкополосный Интернет (не менее 2 Мб/с)","единиц ",1]
["5.7.","Численность детей-инвалидов, которым  показано обучение на дому","человек",2]
["5.8.","Численность детей-инвалидов, получающих образование на дому с использованием дистанционных образовательных технологий","человек",0]
["5.9.","Численность обучающихся 10-11 классов общеобразовательной организации, обучающихся в отдельных зданиях общеобразовательной организации ","человек",0]
["5.10.","Количество построенных новых школ в отчетном году","единиц",0]
["5.11.","Численность обучающихся в новых школах ","человек",0]
["5.12.","Количество построенных новых спортивных залов при школах в отчетном году ","единиц",0]
["5.13.","Количество школ, в которых в отчетном году проведен капитальный ремонт","единиц",0]
["5.14.","Общая численность сельских школьников нуждающихся в подвозе","человек"]
["5.15.","Численность сельских школьников, которым  обеспечен ежедневный подвоз в базовые школы, в общей численности сельских школьников нуждающихся в подвозе","человек"]
["5.16.","Общая численности городских школьников нуждающихся в подвозе","человек",2]
["5.17.","Численность  городских школьников, которым обеспечен ежедневный подвоз в базовые школы","человек",2]
["5.18.","Количество общеобразовательных организаций, имеющих учебно-производственные мастерские","единиц",1]
["5.19.","Численность обучающихся в общеобразовательных организациях, имеющих учебно-производственные мастерские","человек",347]
["6. СОХРАНЕНИЕ И УКРЕПЛЕНИЕ ЗДОРОВЬЯ ШКОЛЬНИКОВ"]
["6.1.","Общее количество зданий общеобразовательной организации","единиц ",1]
["6.2.","Количество зданий общеобразовательной организации, в которых обеспечена безбарьерная среда для детей с ограниченными возможностями здоровья","единиц ",1]
["6.3.","Условия питания (оснащенность столовой):"]
["6.3.1.","собственная (на условиях договора пользования) столовая или зал для приема пищи с площадью в соответствии с СанПиН","Да/Нет","да"]
["6.3.2.","технологическое оборудование","Да/Нет","да"]
["6.3.3.","наличие сотрудников, квалифицированных для работы на современном технологическом оборудовании","Да/Нет","да"]
["6.3.4.","помещение столовой не требует ремонта","Да/Нет","да"]
["6.3.5.","современно оформленный зал для приема пищи ","Да/Нет","да"]
["6.4.","Реализация образовательных программ по формированию культуры здорового питания","Да/Нет","нет"]
["6.5.","Численность обучающихся, которые получают качественное горячее питание"]
["6.5.1.","только горячие завтраки","человек",0]
["6.5.2.","только горячие обеды","человек",153]
["6.5.3.","горячие завтраки и обеды","человек",135]
["6.6.","Численность обучающихся, которые получают качественное горячее питание, в общей численности обучающихся"]
["6.6.1.","только горячие завтраки","человек"]
["6.6.2.","только горячие обеды","человек"]
["6.6.3.","горячие завтраки и обеды","человек"]
["6.7.","Обеспечение условий для реализации федеральных требований к общеобразовательным организациям в части охраны здоровья обучающихся, воспитанников","Да/Нет","нет"]
["6.7.","Численность обучающихся, которым созданы современные условия для занятий физической культурой, в том числе обеспечена возможность пользоваться современно оборудованными спортзалами и спортплощадками","человек",0]
["6.8.1.","Численность обучающихся, которым обеспечена возможность пользоваться универсальными спортивными залами со следующими характеристиками: "]
["6.8.1.1."," собственный спортивный зал или спортивный зал на условиях договора пользования ","человек",347]
["6.8.1.2.","площадь зала для занятий не менее 9х18м","человек",347]
["6.8.1.3.","высота зала не менее 6 м","человек",347]
["6.8.1.4.","оборудованные раздевалки","человек",347]
["6.8.1.5.","действующие душевые комнаты","человек",0]
["6.8.1.6.","действующие туалеты","человек",347]
["6.8.2.","Численность обучающихся, которым обеспечена возможность пользоваться оборудованными спортивными площадками для реализации программы «Легкая атлетика» (с учетом климатических условий) со следующими характеристиками:"]
["6.8.2.1.","собственная оборудованная территория или на условиях договора пользования","человек",0]
["6.8.2.2.","размеченные дорожки для бега","человек",0]
["6.8.2.3.","дорожки для бега с твердым покрытием","человек",0]
["6.8.2.4.","оборудованный сектор для метания","человек",0]
["6.8.2.5.","оборудованный сектор для прыжков в длину","человек",0]
["6.9.","Предусмотрено более 3-х часов физической культуры в неделю","Да/Нет","Да"]
["6.10.","Численность обучающихся, в образовательном плане которых предусмотрено более 3 часов занятий физической культуры в неделю","человек",173]
[" 6.11.","Численность обучающихся, которым обеспечено медицинское обслуживание, включая наличие лицензионных медицинских кабинетов и не менее 1 квалифицированного медицинского работника, в том числе:"]
["6.11.1."," собственный лицензионный медицинский кабинет или на условиях договора пользования","человек",349]
["6.11.2."," имеется  не менее 1 квалифицированного медицинского работника","человек",349]
["7. РАЗВИТИЕ САМОСТОЯТЕЛЬНОСТИ ШКОЛ"]
["7.1.","Реализация перехода на нормативное подушевое финансирование в соответствии с модельной методикой Минобрнауки России","Да/Нет","Да"]
["7.2.","Реализация перехода на новую систему оплаты труда в соответствии с модельной методикой Минобрнауки России","Да/Нет","Да"]
["7.3.","Модель финансирования общеобразовательной организации ","Бюджетная\n","да"]
["7.4.","Предоставление общественности в отчетном году публичного доклада и/или отчета о самообследовании, обеспечивающего открытость и прозрачность деятельности организации","Да/Нет","да"]
["7.5.","Предоставление общественности в отчетном году публичного доклада и/или отчета о самообследовании,  размещенного в сети Интернет","Да/Нет","да"]
["7.6.","Обеспечение взаимодействя с родителями посредством постоянно-действующих реальных и виртуальных переговорных площадок (форум на сайте образовательной организации, общественная родительская организация, лекторий, семинар и др.)","Да/Нет","нет"]
["7.7.","Наличие органов государственно-общественного управления в общеобразовательной организации","Да/Нет","да"]
["7.8.","Наличие органов государственно-общественного управления в общеобразовательной организации, принимающих участие в разработке и утверждении:"]
["7.8.1.","основных образовательных программ","Да/Нет","нет"]
["7.8.2.","программ развития образовательной организации","Да/Нет","нет"]
["7.8.3.","иных нормативно-правовых актов школы и программ","Да/Нет","Да"]
["7.8.4.","планов финансово-хозяйственной деятельности","Да/Нет","Да"]
["7.9.","Использование электронного документооборота (электронные системы управления):"]
["7.9.1.","электронный дневник","Да/Нет","да"]
["7.9.2.","электронный журнал","Да/Нет","да"]
["7.9.3.","электронная учительская","Да/Нет","нет"]
["7.10.","Предоставление некоторых образовательных услуг в электронном виде (запись в школу, ответы на обращения и др.)","Да/Нет","нет"]

{"sheet":"ПСШ","index":2,"n_rows":235,"n_cols":4,"rows_kept":235,"cut":false,"hidden":false,"merged":[[230,2,230,3],[153,0,153,3],[156,2,156,3],[179,0,179,3],[182,2,182,3],[189,2,189,3],[193,2,193,3],[199,2,199,3],[206,2,206,3],[214,2,214,3],[217,0,217,3],[225,2,225,3],[139,2,139,3],[89,0,89,3],[90,2,90,3],[93,2,93,3],[98,2,98,3],[104,2,104,3],[108,2,108,3],[114,2,114,3],[117,2,117,3],[120,2,120,3],[124,0,124,3],[136,2,136,3],[82,2,82,3],[22,2,22,3],[25,2,25,3],[28,2,28,3],[34,2,34,3],[37,2,37,3],[40,2,40,3],[45,0,45,3],[53,2,53,3],[57,2,57,3],[75,2,75,3],[79,2,79,3],[19,2,19,3],[1,0,1,3],[2,0,2,3],[5,0,5,1],[5,2,5,3],[6,0,6,1],[6,2,6,3],[7,0,7,1],[7,2,7,3],[8,0,8,1],[8,2,8,3],[11,0,11,3]]}
[]
["Статистическая форма ННШ-ОУ за 2015 год "]
["«Сведения о параметрах реализации национальной образовательной инициативы «Наша новая школа»"]
[]
[null,"Введите значения в поля желтого цвета."]
["Наименование субъекта РФ",null,"Томская область"]
["Наименование муниципального образования",null,"Кедровый"]
["Наименование общеобразовательной организации",null,"МАОУ Пудинская СОШ"]
["Местонахождение общеобразовательной организации (город/село)",null,"село"]
[]
["№","Наименование показателя","Ед. измерения","Значение показателя"]
["1. ОБЩИЕ ПОКАЗАТЕЛИ"]
["1.1.","Численность обучающихся на конец отчетного периода","человек",120]
["1.2.","Численность учителей на  конец отчетного периода","человек ",10]
["1.2.1.","Численность внешних совместителей на  конец отчетного периода","человек",1]
["1.2.2.","Численность внутренних совместителей на  конец отчетного периода","человек",2]
["1.3.","Численность выпускников 9-x классов","человек",12]
["1.3.1.","Численность выпускников 9-x классов, получивших аттестат с отличием","человек",2]
["1.3.2.","Численность выпускников 9-x классов, не получивших аттестат об основном общем образовании","человек",1]
["1.4.","Численность  выпускников 9-x классов, сдававших  ГИА по:"]
["1.4.1."," русскому языку","человек",10]
["1.4.2."," математике","человек",10]
["1.5.","Средний тестовый балл ГИА выпускников 9-x классов по"]
["1.5.1."," русскому языку","баллов",26.2]
["1.5.2."," математике","баллов",19.5]
["1.6.","Численность выпускников 9-x классов, сдававших  ГИА и не преодолевших минимального порога по:"]
["1.6.1."," русскому языку","человек",0]
["1.6.2."," математике","человек",1]
["1.7.","Численность выпускников 9-х классов, поступивших в профессиональные образовательные организации или на профильное обучение по программам среднего общего образования:"]
["1.7.1."," в профессиональные образовательные организации","человек",2]
["1.7.2."," на профильное обучение по программам среднего общего образования","человек ",0]
["1.8.","Численность выпускников 11-х классов ","человек ",12]
["1.8.1.","Численность выпускников 11-х классов, получивших аттестат о среднем общем образовании ","человек ",12]
["1.8.2.","Численность выпускников 11-х классов, получивших аттестат о среднем общем образовании и награжденных золотой или серебряной медалью","человек ",1]
["1.9.","Численность выпускников, сдававших  ЕГЭ по: "]
["1.9.1."," русскому языку","человек",12]
["1.9.2."," математике","человек",12]
["1.10.","Средний тестовый балл ЕГЭ выпускников по"]
["1.10.1."," русскому языку","баллов",58.83]
["1.10.2."," математике","баллов",4.0999999999999996]
["1.11.","Численность выпускников, сдававших ЕГЭ и не преодолевших минимального порога"]
["1.11.1."," русскому языку","человек",0]
["1.11.2."," математике","человек",0]
["1.12.","Численность выпускников 11-х классов, обучавшихся в классах с углубленным изучением отдельных предметов ","человек",0]
["1.13.","Численность выпускников 11-х классов, обучавшихся в профильных классах","человек",0]
["2. ПЕРЕХОД НА НОВЫЕ ОБРАЗОВАТЕЛЬНЫЕ СТАНДАРТЫ"]
["2.1.","Реализация ФГОС в учебном процессе","Да/Нет","Да"]
["2.1.1.","Общая численность учащихся начальных классов","человек",47]
["2.1.2.","Численность  учащихся начальных классов, обучающихся по ФГОС","человек",47]
["2.1.3.","Общая численность учащихся основной школы","человек",54]
["2.1.4.","Численность  учащихся основной школы, обучающихся по ФГОС","человек",9]
["2.1.5.","Общая численность учащихся старшей школы","человек",19]
["2.1.6.","Численность  учащихся старшей школы, обучающихся по ФГОС ","человек",0]
[" 2.2.","Среднее количество часов в неделю внеурочной деятельности в классах начальной школы, обучающихся по ФГОС,  за счет: "]
["2.2.1.","бюджетного финансирования","часов",4]
["2.2.2.","внебюджетного финансирования","часов",0]
["2.2.3.","сочетания бюджетного и внебюджетного финансирования","часов",0]
[" 2.3.","Среднее количество часов в неделю внеурочной деятельности в классах основной школы,  обучающихся по ФГОС в пилотном режиме,  за счет: "]
["2.3.1.","бюджетного финансирования","часов",5]
["2.3.2.","внебюджетного финансирования","часов",0]
["2.3.3.","сочетания бюджетного и внебюджетного финансирования","часов ",0]
["2.4.","Среднее количество часов в неделю внеурочной деятельности в классах начальной школы, обучающихся по ФГОС  в том числе, отведенных на направления:","часов ",4]
["2.4.1.","спортивно-оздоровительное ","часов",0]
["2.4.2.","духовно-нравственное","часов",0]
["2.4.3.","социальное","часов",0]
["2.4.4.","общеинтеллектуальное","часов",1]
["2.4.5.","общекультурное","часов",4]
["2.4.6.","другие","часов",0]
["2.5.","Среднее количество часов в неделю внеурочной деятельности в классах основной школы, обучающихся по ФГОС в пилотном режиме, в том числе, отведенных на направления:","часов ",5]
["2.5.1.","спортивно-оздоровительное ","часов",1]
["2.5.2.","духовно-нравственное","часов",0]
["2.5.3.","социальное","часов",0]
["2.5.4.","общеинтеллектуальное","часов",0]
["2.5.5.","общекультурное","часов",4]
["2.5.6.","другие","часов",0]
["2.6.","Использование современных оценочных процедур для оценки достижений обучающихся по ФГОС в начальных классах: "," "]
["2.6.1."," механизмы накопительной системы оценивания (портфолио и др.) ","Да/Нет","Да"]
["2.6.2."," проектные, творческие исследовательские работы и др.","Да/Нет","Да"]
["2.6.3.","  иные виды оценивания, отличные от пятибалльной системы","Да/Нет","Нет"]
["2.7.","Численность обучающихся по ФГОС, которым обеспечена возможность пользоваться в соответствии с ФГОС:"]
["2.7.1."," учебным оборудованием для практических работ","человек",55]
["2.7.2."," интерактивными учебными пособиями (доска, мультимедийные установки и др.)","человек",55]
["2.8.","Организация оборудованных постоянно действующих площадок: "]
["2.8.1."," площадки для наблюдений, исследований","единиц",0]
["2.8.2."," площадки для моделирования, конструирования","единиц",0]
["2.8.3."," театральная площадка ","единиц",0]
[]
["2.10.","Общая численность руководителей и педагогических работников","человек ",12]
["2.10.1.","Численность руководителей и педагогических работников общеобразовательной организации, прошедших повышение квалификации и/или профессиональную переподготовку для работы в соответствии с ФГОС","человек ",9]
["3. РАЗВИТИЕ СИСТЕМЫ ПОДДЕРЖКИ ТАЛАНТЛИВЫХ ДЕТЕЙ"]
["3.1.","Школьный этап Всероссийской олимпиады школьников"]
["3.1.1.","Общая численность обучающихся 5-11 классов","человек",73]
["3.1.2.","Численность обучающихся 5-11 классов, принявших участие  в школьном этапе Всероссийской олимпиады школьников","человек ",61]
["3.2.","Муниципальный этап Всероссийской олимпиады школьников"]
["3.2.1.","Общая численность обучающихся 7-11 классов","человек",60]
["3.2.2.","Численность обучающихся 7-11 классов, принявших участие в муниципальном этапе Всероссийской олимпиады школьников ","человек",25]
["3.2.3.","Численность обучающихся 7-11 классов, ставших победителями и призерами муниципального этапа Всероссийской олимпиады школьников","человек",13]
["3.2.4.","Общее количество призовых мест, занятых обучающимися 7-11 классов на муниципальном этапе Всероссийской олимпиады школьников","мест ",14]
["3.3.","Региональный этап Всероссийской олимпиады школьников"]
["3.3.1.","Общая численность  обучающихся 9-11 классов","человек",35]
["3.3.2.","Численность обучающихся 9-11 классов, принявших участие в региональном этапе Всероссийской олимпиады школьников","человек",0]
["3.3.3.","Число обучающихся 9-11 классов, принявших участие в региональном этапе Всероссийской олимпиады школьников на каждые 10000 обучающихся","человек ",0]
["3.3.4.","Численность  обучающихся 9-11 классов, ставших победителями и призерами регионального этапа Всероссийской олимпиады школьников","человек",0]
["3.3.5.","Количество призовых мест в предметных олимпиадах, занятых обучающимися 9-11 классов на региональном этапе Всероссийской олимпиады школьников","мест ",0]
["3.4.","Заключительный этап Всероссийской олимпиады школьников"]
["3.4.1.","Численность обучающихся 9-11 классов, принявших участие в заключительном этапе Всероссийской олимпиады школьников","человек",0]
["3.4.2.","Численность  обучающихся 9-11 классов, ставших победителями и призерами заключительного этапа Всероссийской олимпиады школьников","человек",0]
["3.4.3.","Количество призовых мест, занятых обучающимися 9-11 классов на заключительном этапе Всероссийской олимпиады школьников","мест ",0]
["3.5.","Очные и дистанционные олимпиады, проводимые сторонними организациями"]
["3.5.1.","Численность обучающихся, приявших участие в очных олимпиадах для школьников (кроме Всероссийской олимпиады школьников), проводимых сторонними организациями","человек",0]
["3.5.2.","Количество призовых мест, занятых  обучающимися в очных олимпиадах для школьников (кроме Всероссийской олимпиады школьников), проводимых сторонними организациями ","мест ",0]
["3.5.3.","Численность  обучающихся, ставших победителями и призерами в очных олимпиадах для школьников (кроме Всероссийской олимпиады школьников), проводимых сторонними организациями","человек",0]
["3.5.4.","Численность обучающихся, принявших участие в дистанционных олимпиадах, проводимых сторонними организациями","человек",1]
["3.5.5.","Количество призовых мест, занятых учащимися в дистанционных олимпиадах, проводимых сторонними организациями","мест ",0]
["3.6.","Численность обучающихся, которым созданы условия для занятий творчеством в специально оборудованных:"]
["3.6.1.","студиях","человек",0]
["3.6.2.","актовых залах","человек",120]
["3.7.","Объем финансовых средств, целенаправленно выделенных на поддержку одаренных детей и талантливой молодежи"," "]
["3.7.1.","из федерального бюджета","тыс. рублей",0]
["3.7.2.","из регионального бюджета","тыс. рублей",0]
["3.8.","Численность обучающихся в общеобразовательных организациях, которым оказана поддержка в рамках программ поддержки одаренных детей и талантливой молодежи "]
["3.8.1.","на федеральном уровне","человек",0]
["3.8.2."," на региональном  уровне","человек",0]
[]
["4. СОВЕРШЕНСТВОВАНИЕ УЧИТЕЛЬСКОГО КОРПУСА"]
["4.1.","Общая численность педагогических работников","человек",11]
["4.2.","Численность педагогических работников, прошедших аттестацию на подтверждение занимаемой должности ","человек",2]
["4.3.","Численность педагогических работников, прошедших аттестацию на присвоение первой квалификационной категории","человек",3]
["4.4.","Численность педагогических работников, прошедших аттестацию на присвоение высшей квалификационной категории","человек",0]
["4.5.","Среднемесячная начисленная заработная плата работников общеобразовательной организации за отчетный год","рублей",28288]
["4.5.1."," учителей","рублей",41723]
["4.5.2."," управленческого персонала (директор и заместители директора)","рублей",40043]
["4.5.3."," прочих педагогических работников","рублей",43060]
["4.6.","Численность педагогических работников (учителей и прочих педагогических работников), принятых на работу в текущем году ","человек",1]
["4.7.","Численность педагогических работников (учителей и прочих педагогических работников), принятых на работу в текущем году и поддержанных на уровне субъекта РФ разовыми выплатами","человек",0]
["4.8.","Численность педагогических работников (учителей и прочих педагогических работников), принятых на работу в текущем году и включенных в программу по поддержке молодых специалистов выплатами на период от 2-х и более лет","человек",1]
["4.9.","Численность педагогических работников (учителей и прочих педагогических работников), принятых на работу в текущем году в общеобразовательные организации, расположенные в: "]
["4.9.1.","сельской местности","человек",1]
["4.9.2.","городской местности","человек",0]
["4.10.","Численность педагогических работников (учителей и прочих педагогических работников), принятых на работу в текущем году и обеспеченных жильем (общежитие, отдельная квартира):"]
["4.10.1.","отдельной благоустроенной квартирой","человек",1]
["4.10.2.","общежитием","человек",0]
["4.11.","Общая численность персонала общеобразовательной организации","человек",37]
["4.12.","Общая численность учителей в составе персонала общеобразовательной организации","человек",10]
["4.13.","Численность управленческих кадров в составе персонала общеобразовательной организации ","человек",2]
["4.14.","Численность педагогических кадров, имеющих высшее профессиональное образование в составе персонала общеобразовательной организации","человек",7]
["4.15.","Численность учителей в возрасте до 30 лет  в составе персонала общеобразовательной организации","человек",1]
["4.16.","Численность учителей, которые являются наставниками для молодых специалистов в составе персонала общеобразовательной организации","человек",0]
["4.17.","Численность учителей, которые являются наставниками для молодых специалистов и которым в отчетном году была оказана моральная поддержка (присвоение званий, награждение и т.д.)","человек",0]
["4.18."," Численность учителей, которые являются наставниками для молодых специалистов и которым в отчетном году была оказана материальная поддержка (доплаты из стимулирующей части фонда заработной платы, выплаты по отдельно принятым нормативным правовым актам и т.д.)","человек",0]
["4.19.","Численность учителей, работающих в созданных в субъекте Российской Федерации профессиональных сообществах (ассоциации учителей-предметников иные общественные профессиональные объединения)","человек",0]
["4.20.","Численность педагогических работников,  прошедших в истекшем учебном году курсы повышения квалификации, в том числе:","человек",5]
["4.21.","по персонифицированной модели повышения квалификации","человек",0]
["5.  ИЗМЕНЕНИЕ ШКОЛЬНОЙ ИНФРАСТРУКТУРЫ"]
["5.1.","Обеспечение доступа к бюджетному финансированию по нормативу","Да/Нет","да"]
["5.3.","Средняя наполняемость старшей ступени в государственных (муниципальных) общеобразовательных организациях ","человек ",20]
["5.4.","Численность обучающихся, которые имеют возможность пользоваться современной библиотекой:"]
["5.4.1.","читальный зал библиотеки/медиатеки с числом рабочих мест не менее 25","человек",0]
["5.4.2.","с обеспечением возможности работы на стационарных компьютерах или использования переносных компьютеров ","человек",0]
["5.4.3.","с медиатекой","человек",0]
["5.4.4.","оснащенную средствами сканирования и распознавания текстов ","человек",0]
["5.4.5.","с выходом в Интернет с компьютеров, расположенных в помещении библиотеки ","человек ",0]
["5.4.6.","с контролируемой распечаткой бумажных материалов ","человек",0]
["5.4.7.","с контролируемым копированием бумажных материалов","человек",0]
["5.5.","Численность обучающихся, которым обеспечена возможность пользоваться широкополосным Интернетом (не менее 2 Мб/с), от общей численности обучающихся ","человек",120]
["5.6.","Количество школ, имеющих широкополосный Интернет (не менее 2 Мб/с)","единиц ",1]
["5.7.","Численность детей-инвалидов, которым  показано обучение на дому","человек",1]
["5.8.","Численность детей-инвалидов, получающих образование на дому с использованием дистанционных образовательных технологий","человек",0]
["5.9.","Численность обучающихся 10-11 классов общеобразовательной организации, обучающихся в отдельных зданиях общеобразовательной организации ","человек",0]
["5.10.","Количество построенных новых школ в отчетном году","единиц",0]
["5.11.","Численность обучающихся в новых школах ","человек",0]
["5.12.","Количество построенных новых спортивных залов при школах в отчетном году ","единиц",0]
["5.13.","Количество школ, в которых в отчетном году проведен капитальный ремонт","единиц",0]
["5.14.","Общая численность сельских школьников нуждающихся в подвозе","человек",49]
["5.15.","Численность сельских школьников, которым  обеспечен ежедневный подвоз в базовые школы, в общей численности сельских школьников нуждающихся в подвозе","человек",49]
["5.16.","Общая численности городских школьников нуждающихся в подвозе","человек"]
["5.17.","Численность  городских школьников, которым обеспечен ежедневный подвоз в базовые школы","человек"]
["5.18.","Количество общеобразовательных организаций, имеющих учебно-производственные мастерские","единиц",1]
["5.19.","Численность обучающихся в общеобразовательных организациях, имеющих учебно-производственные мастерские","человек",120]
["6. СОХРАНЕНИЕ И УКРЕПЛЕНИЕ ЗДОРОВЬЯ ШКОЛЬНИКОВ"]
["6.1.","Общее количество зданий общеобразовательной организации","единиц ",1]
["6.2.","Количество зданий общеобразовательной организации, в которых обеспечена безбарьерная среда для детей с ограниченными возможностями здоровья","единиц ",1]
["6.3.","Условия питания (оснащенность столовой):"]
["6.3.1.","собственная (на условиях договора пользования) столовая или зал для приема пищи с площадью в соответствии с СанПиН","Да/Нет","Да"]
["6.3.2.","технологическое оборудование","Да/Нет","Да"]
["6.3.3.","наличие сотрудников, квалифицированных для работы на современном технологическом оборудовании","Да/Нет","Да"]
["6.3.4.","помещение столовой не требует ремонта","Да/Нет","Да"]
["6.3.5.","современно оформленный зал для приема пищи ","Да/Нет","Да"]
["6.4.","Реализация образовательных программ по формированию культуры здорового питания","Да/Нет","Да"]
["6.5.","Численность обучающихся, которые получают качественное горячее питание"]
["6.5.1.","только горячие завтраки","человек",0]
["6.5.2.","только горячие обеды","человек",64]
["6.5.3.","горячие завтраки и обеды","человек",55]
["6.6.","Численность обучающихся, которые получают качественное горячее питание, в общей численности обучающихся"]
["6.6.1.","только горячие завтраки","человек"]
["6.6.2.","только горячие обеды","человек"]
["6.6.3.","горячие завтраки и обеды","человек"]
["6.7.","Обеспечение условий для реализации федеральных требований к общеобразовательным организациям в части охраны здоровья обучающихся, воспитанников","Да/Нет","Да"]
["6.7.","Численность обучающихся, которым созданы современные условия для занятий физической культурой, в том числе обеспечена возможность пользоваться современно оборудованными спортзалами и спортплощадками","человек",0]
["6.8.1.","Численность обучающихся, которым обеспечена возможность пользоваться универсальными спортивными залами со следующими характеристиками: "]
["6.8.1.1."," собственный спортивный зал или спортивный зал на условиях договора пользования ","человек",120]
["6.8.1.2.","площадь зала для занятий не менее 9х18м","человек",120]
["6.8.1.3.","высота зала не менее 6 м","человек",120]
["6.8.1.4.","оборудованные раздевалки","человек",120]
["6.8.1.5.","действующие душевые комнаты","человек",120]
["6.8.1.6.","действующие туалеты","человек",120]
["6.8.2.","Численность обучающихся, которым обеспечена возможность пользоваться оборудованными спортивными площадками для реализации программы «Легкая атлетика» (с учетом климатических условий) со следующими характеристиками:"]
["6.8.2.1.","собственная оборудованная территория или на условиях договора пользования","человек",0]
["6.8.2.2.","размеченные дорожки для бега","человек",0]
["6.8.2.3.","дорожки для бега с твердым покрытием","человек",0]
["6.8.2.4.","оборудованный сектор для метания","человек",0]
["6.8.2.5.","оборудованный сектор для прыжков в длину","человек",0]
["6.9.","Предусмотрено более 3-х часов физической культуры в неделю","Да/Нет","Нет"]
["6.10.","Численность обучающихся, в образовательном плане которых предусмотрено более 3 часов занятий физической культуры в неделю","человек",0]
[" 6.11.","Численность обучающихся, которым обеспечено медицинское обслуживание, включая наличие лицензионных медицинских кабинетов и не менее 1 квалифицированного медицинского работника, в том числе:"]
["6.11.1."," собственный лицензионный медицинский кабинет или на условиях договора пользования","человек",120]
["6.11.2."," имеется  не менее 1 квалифицированного медицинского работника","человек",120]
["7. РАЗВИТИЕ САМОСТОЯТЕЛЬНОСТИ ШКОЛ"]
["7.1.","Реализация перехода на нормативное подушевое финансирование в соответствии с модельной методикой Минобрнауки России","Да/Нет","Да"]
["7.2.","Реализация перехода на новую систему оплаты труда в соответствии с модельной методикой Минобрнауки России","Да/Нет","Да"]
["7.3.","Модель финансирования общеобразовательной организации ","Автономная"]
["7.4.","Предоставление общественности в отчетном году публичного доклада и/или отчета о самообследовании, обеспечивающего открытость и прозрачность деятельности организации","Да/Нет","Да"]
["7.5.","Предоставление общественности в отчетном году публичного доклада и/или отчета о самообследовании,  размещенного в сети Интернет","Да/Нет","Да"]
["7.6.","Обеспечение взаимодействя с родителями посредством постоянно-действующих реальных и виртуальных переговорных площадок (форум на сайте образовательной организации, общественная родительская организация, лекторий, семинар и др.)","Да/Нет","Да"]
["7.7.","Наличие органов государственно-общественного управления в общеобразовательной организации","Да/Нет","Да"]
["7.8.","Наличие органов государственно-общественного управления в общеобразовательной организации, принимающих участие в разработке и утверждении:"]
["7.8.1.","основных образовательных программ","Да/Нет","Да"]
["7.8.2.","программ развития образовательной организации","Да/Нет","Да"]
["7.8.3.","иных нормативно-правовых актов школы и программ","Да/Нет","Да"]
["7.8.4.","планов финансово-хозяйственной деятельности","Да/Нет","Да"]
["7.9.","Использование электронного документооборота (электронные системы управления):"]
["7.9.1.","электронный дневник","Да/Нет","Нет"]
["7.9.2.","электронный журнал","Да/Нет","Да"]
["7.9.3.","электронная учительская","Да/Нет","Нет"]
["7.10.","Предоставление некоторых образовательных услуг в электронном виде (запись в школу, ответы на обращения и др.)","Да/Нет","Нет"]

{"sheet":"Sheet2","index":3,"n_rows":85,"n_cols":3,"rows_kept":85,"cut":false,"hidden":false,"merged":[]}
["город",null,"Республика Адыгея (Адыгея)"]
["село",null,"Республика Алтай"]
[null,null,"Республика Башкортостан"]
[null,null,"Республика Бурятия"]
[null,null,"Республика Дагестан"]
[null,null,"Республика Ингушетия"]
[null,null,"Кабардино-Балкарская Республика"]
[null,null,"Республика Калмыкия"]
[null,null,"Карачаево-Черкесская Республика"]
["Да",null,"Республика Карелия"]
["Нет",null,"Республика Коми"]
[null,null,"Республика Крым"]
[null,null,"Республика Марий Эл"]
[null,null,"Республика Мордовия"]
[null,null,"Республика Саха (Якутия)"]
[null,null,"Республика Северная Осетия – Алания"]
[null,null,"Республика Татарстан (Татарстан)"]
[null,null,"Республика Тыва"]
[null,null,"Удмуртская Республика"]
[null,null,"Республика Хакасия"]
[null,null,"Чеченская Республика"]
[null,null,"Чувашская Республика – Чувашия"]
[null,null,"Алтайский край"]
[null,null,"Забайкальский край"]
[null,null,"Камчатский край"]
[null,null,"Краснодарский край"]
[null,null,"Красноярский край"]
[null,null,"Пермский край"]
[null,null,"Приморский край"]
[null,null,"Ставропольский край"]
[null,null,"Хабаровский край"]
[null,null,"Амурская область"]
[null,null,"Архангельская область"]
[null,null,"Астраханская область"]
[null,null,"Белгородская область"]
[null,null,"Брянская область"]
[null,null,"Владимирская область"]
[null,null,"Волгоградская область"]
[null,null,"Вологодская область"]
[null,null,"Воронежская область"]
[null,null,"Ивановская область"]
[null,null,"Иркутская область"]
[null,null,"Калининградская область"]
[null,null,"Калужская область"]
[null,null,"Кемеровская область"]
[null,null,"Кировская область"]
[null,null,"Костромская область"]
[null,null,"Курганская область"]
[null,null,"Курская область"]
[null,null,"Ленинградская область"]
[null,null,"Липецкая область"]
[null,null,"Магаданская область"]
[null,null,"Московская область"]
[null,null,"Мурманская область"]
[null,null,"Нижегородская область"]
[null,null,"Новгородская область"]
[null,null,"Новосибирская область"]
[null,null,"Омская область"]
[null,null,"Оренбургская область"]
[null,null,"Орловская область"]
[null,null,"Пензенская область"]
[null,null,"Псковская область"]
[null,null,"Ростовская область"]
[null,null,"Рязанская область"]
[null,null,"Самарская область"]
[null,null,"Саратовская область"]
[null,null,"Сахалинская область"]
[null,null,"Свердловская область"]
[null,null,"Смоленская область"]
[null,null,"Тамбовская область"]
[null,null,"Тверская область"]
[null,null,"Томская область"]
[null,null,"Тульская область"]
[null,null,"Тюменская область"]
[null,null,"Ульяновская область"]
[null,null,"Челябинская область"]
[null,null,"Ярославская область"]
[null,null,"г. Москва"]
[null,null,"г. Санкт-Петербург"]
[null,null,"г. Севастополь"]
[null,null,"Еврейская автономная область"]
[null,null,"Ненецкий автономный округ"]
[null,null,"Ханты-Мансийский автономный округ - Югра"]
[null,null,"Чукотский автономный округ"]
[null,null,"Ямало-Ненецкий автономный округ"]

{"sheet":"Sheet3","index":4,"n_rows":0,"n_cols":0,"rows_kept":0,"cut":false,"hidden":false,"merged":[]}